bitfinex/quotes_BTCUSD_20250523
["timestamp","ask_amount","ask_price","bid_price","bid_amount"]
[1748021270729,0.18648245,109630.0,109620.0,1.17738505]
[1748021271277,0.18648245,109630.0,109620.0,1.20475173]
[1748021271278,0.20472504,109630.0,109620.0,1.20475173]
[1748021271483,0.02229265,109630.0,109620.0,1.24157357]
[1748021271680,0.03141432,109630.0,109620.0,1.24132747]
[1748021271915,0.21384613,109630.0,109620.0,1.23237173]
[1748021272123,0.20472504,109630.0,109620.0,0.7214566]
[1748021272300,0.20472504,109630.0,109620.0,1.17730505]
[1748021272517,0.19460387,109630.0,109620.0,0.9948566]
[1748021276710,0.19460387,109630.0,109620.0,1.17730505]
[1748021277115,0.19460387,109630.0,109620.0,1.17726505]
[1748021277235,0.18548245,109630.0,109620.0,1.17726505]
[1748021277645,0.18548245,109630.0,109620.0,0.9948166]
[1748021278078,0.18548245,109630.0,109620.0,1.17726505]
[1748021278730,0.18548245,109630.0,109620.0,1.18638738]
[1748021278955,0.18548245,109630.0,109620.0,1.21568738]
[1748021278956,0.00305064,109630.0,109620.0,1.21568738]
[1748021279194,0.00911834,109660.0,109650.0,0.34911959]
[1748021279344,0.01832975,109660.0,109650.0,0.34]
[1748021279548,0.01824093,109640.0,109630.0,0.0293]
[1748021279748,0.23831355,109650.0,109640.0,0.39368]
[1748021280340,0.32785911,109650.0,109640.0,0.39368]
[1748021280519,0.32785911,109650.0,109640.0,1.02684]
[1748021280931,0.34239996,109650.0,109640.0,0.75344]
[1748021281134,0.2573744,109630.0,109620.0,0.0216566]
[1748021281293,0.20071101,109610.0,109600.0,0.40631935]
[1748021281506,0.22931101,109610.0,109600.0,1.03943935]
[1748021281721,0.22931101,109610.0,109600.0,1.2219211]
[1748021281948,0.22931101,109610.0,109600.0,0.404184]
[1748021282164,0.22931101,109610.0,109600.0,1.55978575]
[1748021282363,0.22931101,109610.0,109600.0,1.56178575]
[1748021282567,0.22931101,109610.0,109600.0,1.56183639]
[1748021282797,0.22931101,109610.0,109600.0,1.55983639]
[1748021283134,0.22931101,109610.0,109600.0,1.56083639]
[1748021283376,0.22018818,109610.0,109600.0,0.76541305]
[1748021283551,0.33853374,109610.0,109600.0,1.39853305]
[1748021283969,0.20071135,109610.0,109600.0,1.59013888]
[1748021284183,0.01824541,109610.0,109600.0,1.60838647]
[1748021284387,0.02736841,109610.0,109600.0,1.59984247]
[1748021284609,0.00912258,109610.0,109600.0,1.59984255]
[1748021284815,0.01824541,109610.0,109600.0,1.60896605]
[1748021285040,0.01824541,109610.0,109600.0,1.60896613]
[1748021285826,0.20069526,109620.0,109610.0,0.1824651]
[1748021286030,0.29936324,109620.0,109610.0,0.1824651]
[1748021286659,0.00912184,109620.0,109610.0,0.1824651]
[1748021286894,0.02736609,109620.0,109610.0,0.19158827]
[1748021287068,0.20981503,109620.0,109610.0,0.1824651]
[1748021287490,0.20981503,109620.0,109610.0,0.19158835]
[1748021287836,0.02736658,109620.0,109610.0,0.20071152]
[1748021288287,0.01824375,109620.0,109610.0,0.2098346]
[1748021288505,0.02736559,109620.0,109610.0,0.54071152]
[1748021288698,0.21893696,109620.0,109610.0,0.5224651]
[1748021288915,0.23891512,109620.0,109610.0,1.1579451]
[1748021289117,0.23891512,109620.0,109610.0,1.16706835]
[1748021289325,0.04734425,109620.0,109610.0,1.17619152]
[1748021289530,0.04734425,109620.0,109610.0,1.1853146]
[1748021289720,0.01824425,109620.0,109610.0,1.1853146]
[1748021290005,0.2006927,109620.0,109610.0,1.17619152]
[1748021290204,0.20981503,109620.0,109610.0,1.17619152]
[1748021290390,0.20981503,109620.0,109610.0,1.16706827]
[1748021290949,0.20981503,109620.0,109610.0,1.17619135]
[1748021291262,0.20981503,109620.0,109610.0,1.16706827]
[1748021291576,0.20981503,109620.0,109610.0,1.17619135]
[1748021292105,0.02736658,109620.0,109610.0,1.17619135]
[1748021292267,0.02736658,109620.0,109610.0,1.18531435]
[1748021292654,0.02736658,109620.0,109610.0,1.16706827]
[1748021292874,0.20981503,109620.0,109610.0,1.16706827]
[1748021293095,0.19158818,109610.0,109600.0,0.41486905]
[1748021293321,0.21978818,109610.0,109600.0,0.1454851]
[1748021293528,0.20985308,109600.0,109590.0,0.58685737]
[1748021293763,0.2282295,109600.0,109590.0,0.40435935]
[1748021293981,0.2551295,109600.0,109590.0,1.0595365]
[1748021294223,0.2541295,109600.0,109590.0,1.04885715]
[1748021294438,0.34367506,109600.0,109590.0,0.77545715]
[1748021294653,0.35721591,109600.0,109590.0,0.66708]
[1748021294869,0.35721591,109600.0,109590.0,0.68654345]
[1748021294870,0.34267506,109600.0,109590.0,0.68654345]
[1748021295078,0.34267506,109600.0,109590.0,0.67008]
[1748021295292,0.07264741,109600.0,109590.0,0.8525784]
[1748021295534,0.91971101,109610.0,109600.0,0.18248175]
[1748021295743,1.00925691,109610.0,109600.0,0.54460175]
[1748021296134,1.00925691,109610.0,109600.0,0.36212]
[1748021296558,1.03795691,109610.0,109600.0,0.63556]
[1748021297619,1.04095691,109610.0,109600.0,0.63556]
[1748021297826,1.04395691,109610.0,109600.0,0.63556]
[1748021298290,0.0182475,109600.0,109590.0,0.59442807]
[1748021298500,0.036495,109600.0,109590.0,1.56998807]
[1748021298718,0.036495,109600.0,109590.0,1.57911274]
[1748021298935,0.036495,109600.0,109590.0,1.56998807]
[1748021299136,0.21897675,109600.0,109590.0,1.56086332]
[1748021299334,0.21897675,109600.0,109590.0,1.5791129]
[1748021299502,0.21897675,109600.0,109590.0,1.56998815]
[1748021300087,0.22097675,109600.0,109590.0,1.56086332]
[1748021300301,0.34837522,109600.0,109590.0,1.36924]
[1748021300936,0.002,109600.0,109590.0,1.56998781]
[1748021301154,0.02937117,109600.0,109590.0,1.56998798]
[1748021301404,0.02224691,109600.0,109590.0,1.58823689]
[1748021301555,0.02224683,109600.0,109590.0,1.58823689]
[1748021301768,0.03137058,109600.0,109590.0,1.58823698]
[1748021302034,0.02224683,109600.0,109590.0,1.58823698]
[1748021302268,0.03137058,109600.0,109590.0,1.58823706]
[1748021302502,0.0404945,109600.0,109590.0,1.58823706]
[1748021303042,0.0404945,109600.0,109590.0,1.57911265]
[1748021303276,0.0404945,109600.0,109590.0,1.5517784]
[1748021303277,0.03137167,109600.0,109590.0,1.5517784]
[1748021303490,0.01312367,109600.0,109590.0,1.57002781]
[1748021303698,0.004,109600.0,109590.0,1.6981977]
[1748021303923,0.004,109600.0,109590.0,1.7268977]
[1748021304977,0.004,109600.0,109590.0,1.79544346]
[1748021305918,0.002,109600.0,109590.0,1.79544346]
[1748021306221,0.002,109600.0,109590.0,1.79644346]
[1748021306629,0.01824517,109610.0,109600.0,0.20985324]
[1748021306766,0.01824517,109610.0,109600.0,0.21897674]
[1748021307009,0.02736792,109610.0,109600.0,0.21897674]
[1748021307206,0.03649075,109610.0,109600.0,0.21897674]
[1748021307415,0.03649075,109610.0,109600.0,0.20985333]
[1748021307621,0.02736792,109610.0,109600.0,0.21897683]
[1748021307823,0.01824517,109610.0,109600.0,0.21897683]
[1748021308098,0.0101225,109610.0,109600.0,0.21897683]
[1748021308306,0.01924517,109610.0,109600.0,0.21897683]
[1748021308703,0.01924517,109610.0,109600.0,0.55897683]
[1748021308934,0.001,109610.0,109600.0,0.55897683]
[1748021309149,0.001,109610.0,109600.0,0.71327748]
[1748021310437,0.02836825,109610.0,109600.0,1.18484459]
[1748021310647,0.02836817,109610.0,109600.0,1.19396809]
[1748021310873,0.02836817,109610.0,109600.0,1.19396817]
[1748021311536,0.03749117,109610.0,109600.0,0.54016084]
[1748021311747,0.06529117,109610.0,109600.0,1.18484467]
[1748021312189,0.06529117,109610.0,109600.0,1.19396842]
[1748021312379,0.02836817,109610.0,109600.0,1.20309192]
[1748021312575,0.02836817,109610.0,109600.0,1.203092]
[1748021313122,0.08356817,109610.0,109600.0,0.55840842]
[1748021313292,0.2569111,109610.0,109600.0,1.16659684]
[1748021313963,0.24778818,109610.0,109600.0,1.16659684]
[1748021314754,0.04704591,109610.0,109600.0,1.15804175]
[1748021314986,0.02836808,109610.0,109600.0,1.19453691]
[1748021315192,0.03749108,109610.0,109600.0,0.85453699]
[1748021315351,0.02836808,109610.0,109600.0,0.86366049]
[1748021315548,0.04661408,109610.0,109600.0,0.85453708]
[1748021315779,0.037491,109610.0,109600.0,0.86366066]
[1748021315984,0.04661408,109610.0,109600.0,0.84541341]
[1748021316186,0.04661408,109610.0,109600.0,0.85453708]
[1748021316485,0.04661408,109610.0,109600.0,1.18541341]
[1748021316865,0.2199566,109610.0,109600.0,1.17628975]
[1748021317060,0.2199566,109610.0,109600.0,1.1939629]
[1748021317061,0.25587985,109610.0,109600.0,1.1939629]
[1748021317349,0.25587985,109610.0,109600.0,0.64198932]
[1748021317350,0.39068983,109610.0,109600.0,0.64198932]
[1748021317478,0.34685699,109610.0,109600.0,0.00854932]
[1748021317678,0.34685699,109610.0,109600.0,0.64198932]
[1748021318795,0.34685699,109610.0,109600.0,0.63344]
[1748021322338,0.01012283,109610.0,109600.0,0.83416966]
[1748021322548,0.01012258,109610.0,109600.0,1.19241691]
[1748021322760,0.02836849,109610.0,109600.0,1.18329341]
[1748021323171,0.03749174,109610.0,109600.0,1.17416966]
[1748021323386,0.03749166,109610.0,109600.0,1.18329341]
[1748021323591,0.03749166,109610.0,109600.0,1.17416975]
[1748021323791,0.02836849,109610.0,109600.0,1.18329342]
[1748021324009,0.02836841,109610.0,109600.0,1.192417]
[1748021324146,0.03749149,109610.0,109600.0,1.19241733]
[1748021324637,0.02836841,109610.0,109600.0,1.19241733]
[1748021324889,0.001,109610.0,109600.0,1.20154083]
[1748021325104,0.01924525,109610.0,109600.0,1.19241733]
[1748021325314,0.01924525,109610.0,109600.0,1.20154083]
[1748021326425,0.01924525,109610.0,109600.0,1.21012306]
[1748021326633,0.0101225,109610.0,109600.0,1.21012306]
[1748021327043,0.01924525,109610.0,109600.0,1.21012306]
[1748021327240,0.01924517,109610.0,109600.0,1.21012306]
[1748021328172,0.0101225,109610.0,109600.0,1.21012306]
[1748021328368,0.01924517,109610.0,109600.0,1.21012306]
[1748021329213,0.0101225,109610.0,109600.0,1.21012306]
[1748021329415,0.001,109610.0,109600.0,1.23762306]
[1748021329656,0.001,109610.0,109600.0,1.35516862]
[1748021330017,0.002,109630.0,109620.0,0.54981471]
[1748021330231,0.01117161,109630.0,109620.0,1.18325471]
[1748021330429,0.00205061,109630.0,109620.0,1.18325471]
[1748021330639,0.00205061,109630.0,109620.0,1.32670027]
[1748021330834,0.37598966,109660.0,109640.0,0.21888169]
[1748021330835,0.03751884,109660.0,109640.0,0.21888169]
[1748021331088,0.03751884,109660.0,109650.0,1.21183834]
[1748021331089,0.23818888,109660.0,109650.0,1.21183834]
[1748021331290,0.23818888,109660.0,109650.0,1.20955854]
[1748021331731,0.04668806,109660.0,109650.0,1.2186783]
[1748021331886,0.22907029,109660.0,109650.0,1.20955854]
[1748021332094,0.23307029,109660.0,109650.0,1.20955854]
[1748021332629,0.22907029,109660.0,109650.0,1.20955854]
[1748021333244,0.23107029,109660.0,109650.0,1.20955854]
[1748021333664,0.21995145,109660.0,109650.0,1.20955854]
[1748021333867,0.22495145,109660.0,109650.0,1.20955854]
[1748021334263,0.22095145,109660.0,109650.0,1.20955854]
[1748021334807,0.22395145,109660.0,109650.0,1.20955854]
[1748021335015,0.22395145,109660.0,109650.0,1.24428262]
[1748021335231,0.22395145,109660.0,109650.0,0.61084262]
[1748021335393,0.22395145,109660.0,109650.0,1.24420262]
[1748021336596,0.04156955,109660.0,109650.0,1.24420262]
[1748021336725,0.23307012,109660.0,109650.0,1.24420262]
[1748021338225,0.05068757,109660.0,109650.0,1.60244205]
[1748021338422,0.04052516,109660.0,109650.0,1.60244213]
[1748021338635,0.03652508,109660.0,109650.0,1.60244213]
[1748021338830,0.03652508,109660.0,109650.0,1.61156172]
[1748021338994,0.03852508,109660.0,109650.0,1.61156172]
[1748021339195,0.03852557,109660.0,109650.0,1.59332246]
[1748021339468,0.03852557,109660.0,109650.0,1.60244213]
[1748021339953,0.04052557,109660.0,109650.0,1.60244222]
[1748021340128,0.04052557,109660.0,109650.0,1.61156189]
[1748021340332,0.04052549,109660.0,109650.0,1.62068148]
[1748021340686,0.01316897,109660.0,109650.0,1.62980082]
[1748021340910,0.00405063,109660.0,109650.0,1.74684638]
[1748021341120,0.21094322,109690.0,109680.0,0.19146608]
[1748021341121,0.02023236,109690.0,109680.0,0.19146608]
[1748021341332,0.01111585,109690.0,109680.0,1.1920972]
[1748021341556,0.01111585,109690.0,109680.0,1.18298035]
[1748021341557,0.02985413,109690.0,109680.0,1.18298035]
[1748021341772,0.00250634,109690.0,109680.0,1.1920972]
[1748021342422,0.00250634,109690.0,109680.0,1.33514276]
[1748021343966,0.00250634,109690.0,109680.0,1.33714276]
[1748021344184,0.00250634,109690.0,109680.0,1.31114276]
[1748021345055,0.00250634,109690.0,109680.0,1.31214276]
[1748021345275,0.33638487,109730.0,109720.0,0.18228217]
[1748021345483,0.30904563,109730.0,109720.0,1.02664]
[1748021345683,0.3091842,109730.0,109720.0,1.02664]
[1748021346830,0.3091842,109730.0,109720.0,1.06204501]
[1748021347243,0.39872976,109730.0,109720.0,1.06180501]
[1748021347428,0.39872976,109730.0,109720.0,0.42892501]
[1748021347635,0.25442807,109710.0,109700.0,0.5757954]
[1748021347839,0.04452929,109710.0,109700.0,0.5419554]
[1748021348045,0.22682807,109710.0,109700.0,0.5419554]
[1748021348305,0.03541427,109710.0,109700.0,0.55107108]
[1748021348443,0.036458,109710.0,109700.0,0.56018651]
[1748021348646,0.01822871,109710.0,109700.0,0.56018651]
[1748021348890,0.00911427,109710.0,109700.0,0.85833708]
[1748021349141,0.01822871,109710.0,109700.0,0.87656769]
[1748021349346,0.02734331,109710.0,109700.0,0.87656778]
[1748021349666,0.03645816,109710.0,109700.0,1.2074526]
[1748021349871,0.03645808,109710.0,109700.0,1.21656803]
[1748021350068,0.02734331,109710.0,109700.0,1.22568338]
[1748021350277,0.02734331,109710.0,109700.0,1.22568297]
[1748021350473,0.02734331,109710.0,109700.0,1.2165677]
[1748021350680,0.02734331,109710.0,109700.0,1.22568297]
[1748021351037,0.036458,109710.0,109700.0,1.2165677]
[1748021351486,0.04557277,109710.0,109700.0,1.21656812]
[1748021351697,0.036458,109710.0,109700.0,1.23479874]
[1748021352077,0.02734331,109710.0,109700.0,1.23479874]
[1748021352499,0.036458,109710.0,109700.0,1.22568347]
[1748021352731,0.22787163,109710.0,109700.0,0.5563414]
[1748021352953,0.05534414,109710.0,109700.0,1.19821708]
[1748021353156,0.05534414,109710.0,109700.0,1.2073326]
[1748021353977,0.05534406,109710.0,109700.0,1.21644811]
[1748021354181,0.05534406,109710.0,109700.0,1.2164482]
[1748021354388,0.06445899,109710.0,109700.0,1.2164482]
[1748021354587,0.05534406,109710.0,109700.0,1.2164482]
[1748021354920,0.06445899,109710.0,109700.0,1.2164482]
[1748021355137,0.06445891,109710.0,109700.0,1.2164482]
[1748021355345,0.2285284,109710.0,109700.0,1.1891014]
[1748021355548,0.2555284,109710.0,109700.0,0.56545717]
[1748021355727,0.2555284,109710.0,109700.0,1.19821717]
[1748021356305,0.2555284,109710.0,109700.0,1.5825014]
[1748021356534,0.24641363,109710.0,109700.0,1.126986]
[1748021356775,0.24641363,109710.0,109700.0,1.400186]
[1748021357129,0.25552823,109710.0,109700.0,1.5825014]
[1748021357333,0.04622879,109710.0,109700.0,1.60073235]
[1748021357517,0.04622879,109710.0,109700.0,1.60073243]
[1748021357723,0.23764234,109710.0,109700.0,1.59097852]
[1748021357919,0.23764234,109710.0,109700.0,1.40866312]
[1748021358130,0.25532807,109710.0,109700.0,1.59097852]
[1748021358331,0.24621355,109710.0,109700.0,1.59097852]
[1748021358542,0.24621355,109710.0,109700.0,0.38250312]
[1748021358754,0.42422003,109710.0,109700.0,0.00847712]
[1748021359242,0.43268289,109710.0,109700.0,0.00847712]
[1748021359691,0.43268289,109710.0,109700.0,0.36799712]
[1748021359945,0.43268289,109710.0,109700.0,0.00847712]
[1748021360158,0.35876282,109710.0,109700.0,0.00847712]
[1748021360325,0.35876282,109710.0,109700.0,0.35952]
[1748021361168,0.24434845,109690.0,109680.0,0.39336]
[1748021361378,0.33389401,109690.0,109680.0,1.02608]
[1748021363056,0.24434845,109690.0,109680.0,0.61009103]
[1748021363266,0.2534648,109690.0,109680.0,1.24285103]
[1748021363472,0.2534648,109690.0,109680.0,1.06050238]
[1748021363893,0.2534648,109690.0,109680.0,1.06900666]
[1748021364071,0.34301036,109690.0,109680.0,1.06900666]
[1748021366619,0.2534648,109690.0,109680.0,1.06900666]
[1748021367237,0.2277648,109690.0,109680.0,1.06900666]
[1748021367411,0.2277648,109690.0,109680.0,1.25135531]
[1748021368032,0.21864845,109690.0,109680.0,1.06900666]
[1748021368454,0.21864845,109690.0,109680.0,1.25135531]
[1748021368795,0.21864845,109690.0,109680.0,1.06900666]
[1748021369539,0.21864845,109690.0,109680.0,1.25135531]
[1748021369741,0.21864845,109690.0,109680.0,1.06900666]
[1748021370700,0.2072154,109700.0,109690.0,0.18233202]
[1748021370910,0.20735393,109700.0,109690.0,0.18233202]
[1748021372014,0.01823261,109690.0,109680.0,1.26958967]
[1748021372210,0.01823261,109690.0,109680.0,1.27176474]
[1748021372417,0.01823203,109690.0,109680.0,1.27176474]
[1748021372627,0.00911593,109690.0,109680.0,1.28999852]
[1748021372838,0.02734838,109690.0,109680.0,1.28088167]
[1748021373046,0.00911593,109690.0,109680.0,1.28999852]
[1748021373262,0.02734796,109690.0,109680.0,1.30678126]
[1748021373441,0.02734796,109690.0,109680.0,1.29766441]
[1748021373891,0.03646422,109690.0,109680.0,1.28028365]
[1748021374358,0.04558057,109690.0,109680.0,1.28940066]
[1748021374992,0.27249732,109690.0,109680.0,0.44694056]
[1748021375204,0.25426488,109690.0,109680.0,1.25144986]
[1748021375630,0.22816488,109690.0,109680.0,1.25144986]
[1748021376038,0.22816488,109690.0,109680.0,1.26056729]
[1748021376178,0.21904853,109690.0,109680.0,1.25144986]
[1748021377217,0.22816479,109690.0,109680.0,1.25144986]
[1748021377412,0.22816479,109690.0,109680.0,1.06910121]
[1748021377766,0.25356479,109690.0,109680.0,1.06910121]
[1748021377991,0.25356479,109690.0,109680.0,1.25144986]
[1748021378544,0.24444853,109690.0,109680.0,1.59144986]
[1748021379781,0.25356479,109690.0,109680.0,1.60968446]
[1748021379953,0.00911601,109690.0,109680.0,1.6188014]
[1748021380158,0.02734878,109690.0,109680.0,1.61880157]
[1748021380362,0.01823227,109690.0,109680.0,1.6276785]
[1748021380561,0.0273487,109690.0,109680.0,1.62767858]
[1748021380757,0.21879732,109690.0,109680.0,1.60944463]
[1748021380968,0.24539732,109690.0,109680.0,1.60944463]
[1748021381199,0.24539732,109690.0,109680.0,1.60032729]
[1748021381426,0.23628131,109690.0,109680.0,1.59120986]
[1748021382051,0.23628131,109690.0,109680.0,1.60032729]
[1748021382291,0.23628131,109690.0,109680.0,1.59120986]
[1748021382537,0.22716505,109690.0,109680.0,1.59120986]
[1748021382742,0.24364862,109690.0,109680.0,0.95860986]
[1748021382934,0.24364862,109690.0,109680.0,1.59120986]
[1748021384130,0.24364862,109690.0,109680.0,1.60944446]
[1748021384355,0.21804862,109690.0,109680.0,1.6003272]
[1748021384616,0.21804862,109690.0,109680.0,1.60032729]
[1748021384825,0.21804862,109690.0,109680.0,1.59120986]
[1748021385251,0.21804862,109690.0,109680.0,1.56594491]
[1748021385824,0.21804862,109690.0,109680.0,1.55682748]
[1748021387780,0.21804862,109690.0,109680.0,1.54830865]
[1748021387987,0.04483286,109690.0,109680.0,1.55742599]
[1748021388222,0.05394896,109690.0,109680.0,1.56654317]
[1748021388399,0.23628098,109690.0,109680.0,1.55742599]
[1748021388548,0.23628098,109690.0,109680.0,1.56654325]
[1748021388778,0.22716488,109690.0,109680.0,0.91570865]
[1748021389161,0.25266488,109690.0,109680.0,1.55742608]
[1748021390198,0.25266488,109690.0,109680.0,1.56654342]
[1748021390414,0.25266488,109690.0,109680.0,1.57509231]
[1748021390599,0.22716488,109690.0,109680.0,1.58420957]
[1748021390907,0.22716488,109690.0,109680.0,1.57509231]
[1748021391383,0.22716488,109690.0,109680.0,1.58420949]
[1748021391601,0.22716488,109690.0,109680.0,1.58420957]
[1748021392171,0.22716488,109690.0,109680.0,1.59332675]
[1748021392375,0.22716488,109690.0,109680.0,1.58420957]
[1748021392857,0.22716488,109690.0,109680.0,1.59332675]
[1748021393075,0.04483286,109690.0,109680.0,1.60244385]
[1748021393302,0.22716488,109690.0,109680.0,1.58420957]
[1748021393722,0.04483245,109690.0,109680.0,1.60244368]
[1748021393937,0.02734888,109690.0,109680.0,1.59332675]
[1748021394155,0.01823195,109690.0,109680.0,1.60244327]
[1748021394367,0.0273483,109690.0,109680.0,1.60244335]
[1748021394660,0.0540483,109690.0,109680.0,1.59332642]
[1748021394877,0.06316456,109690.0,109680.0,1.59332609]
[1748021395115,0.06316456,109690.0,109680.0,1.58420908]
[1748021395548,0.06316456,109690.0,109680.0,1.59332609]
[1748021395764,0.06316456,109690.0,109680.0,1.58420908]
[1748021395973,0.05404813,109690.0,109680.0,1.59332609]
[1748021396177,0.06316456,109690.0,109680.0,1.59332609]
[1748021396605,0.06316456,109690.0,109680.0,1.58420908]
[1748021396814,0.27149658,109690.0,109680.0,1.55685754]
[1748021397035,0.27149658,109690.0,109680.0,1.5659748]
[1748021397232,0.27149658,109690.0,109680.0,1.56597488]
[1748021397431,0.27149658,109690.0,109680.0,1.57509214]
[1748021397653,0.28061318,109690.0,109680.0,1.58420932]
[1748021397856,0.25461318,109690.0,109680.0,1.58420932]
[1748021398006,0.06316456,109690.0,109680.0,1.59332642]
[1748021398404,0.07228107,109690.0,109680.0,1.58420932]
[1748021399515,0.06316522,109690.0,109680.0,1.58420932]
[1748021399722,0.24549724,109690.0,109680.0,1.58420932]
[1748021399937,0.23638114,109690.0,109680.0,1.57509214]
[1748021400150,0.24549774,109690.0,109680.0,1.56597488]
[1748021400362,0.24549774,109690.0,109680.0,1.57509214]
[1748021400663,0.24549774,109690.0,109680.0,1.58420932]
[1748021401115,0.24549774,109690.0,109680.0,1.57509214]
[1748021401327,0.24549774,109690.0,109680.0,1.56597488]
[1748021401547,0.27089774,109690.0,109680.0,0.74190889]
[1748021401762,0.25266513,109690.0,109680.0,0.74190889]
[1748021401972,0.34221069,109690.0,109680.0,1.02596]
[1748021402423,0.24416608,109680.0,109670.0,0.91480461]
[1748021402659,0.24416608,109680.0,109670.0,0.69936]
[1748021402891,0.23504865,109680.0,109660.0,0.01267935]
[1748021403111,0.24238336,109670.0,109660.0,0.01267935]
[1748021403326,0.33192892,109670.0,109660.0,0.37203935]
[1748021403545,0.33192892,109670.0,109660.0,0.01267935]
[1748021403776,0.34646977,109670.0,109660.0,0.37203935]
[1748021404007,0.35499866,109670.0,109660.0,0.28591935]
[1748021404223,0.35499866,109670.0,109660.0,0.27524]
[1748021404438,0.35499866,109670.0,109660.0,0.27624]
[1748021404657,0.35499866,109670.0,109660.0,0.003]
[1748021404872,0.35499866,109670.0,109660.0,0.27524]
[1748021405529,0.35499866,109670.0,109660.0,0.002]
[1748021405747,0.34646977,109670.0,109660.0,0.27524]
[1748021405963,0.34646977,109670.0,109660.0,0.002]
[1748021406441,0.34646977,109670.0,109610.0,0.5759451]
[1748021406442,0.2282927,109620.0,109610.0,0.5759451]
[1748021406663,0.2282927,109620.0,109610.0,0.39348]
[1748021406938,0.2542927,109620.0,109610.0,0.75288]
[1748021407185,0.2542927,109620.0,109610.0,0.6994]
[1748021407443,0.2542927,109620.0,109610.0,0.3594]
[1748021407704,0.34383826,109620.0,109610.0,0.3644]
[1748021407886,0.34383826,109620.0,109610.0,0.63818634]
[1748021408099,0.34383826,109620.0,109610.0,0.63718634]
[1748021408550,0.34383826,109620.0,109610.0,0.63618634]
[1748021408753,0.34383826,109620.0,109610.0,0.00650634]
[1748021408975,0.35837911,109620.0,109610.0,0.00650634]
[1748021409590,0.35837911,109620.0,109610.0,0.00350634]
[1748021409852,0.35837911,109620.0,109610.0,0.00050634]
[1748021410059,0.35937911,109620.0,109610.0,0.00050634]
[1748021410293,0.69937911,109620.0,109610.0,0.00050634]
[1748021410500,0.78890062,109620.0,109610.0,0.00050634]
[1748021411342,0.69937911,109620.0,109610.0,0.00050634]
[1748021413041,0.69937911,109620.0,109610.0,0.0004205]
[1748021414064,1.38907911,109620.0,109610.0,0.0004205]
[1748021414820,0.34483826,109620.0,109610.0,0.1828856]
[1748021415050,0.2292927,109620.0,109610.0,0.1828856]
[1748021415266,0.001,109620.0,109610.0,0.25680567]
[1748021415483,0.01924359,109620.0,109610.0,0.27505176]
[1748021415693,0.01012167,109620.0,109610.0,0.67785443]
[1748021415905,0.001,109620.0,109610.0,0.67785443]
[1748021416119,0.001,109620.0,109610.0,0.70585443]
[1748021416335,0.01012167,109620.0,109610.0,0.70585443]
[1748021416578,0.02736285,109630.0,109620.0,0.2006927]
[1748021416768,0.22705601,109640.0,109630.0,0.18243181]
[1748021416919,0.19153592,109640.0,109630.0,0.18243181]
[1748021417347,0.18241517,109640.0,109630.0,0.63264]
[1748021417541,0.18241517,109640.0,109630.0,0.81507181]
[1748021417996,0.02024134,109640.0,109630.0,0.82419331]
[1748021418393,0.02936168,109640.0,109630.0,0.82419331]
[1748021418592,0.02936168,109640.0,109630.0,0.83331473]
[1748021418976,0.02936085,109640.0,109630.0,0.83331465]
[1748021419192,0.002,109640.0,109630.0,0.8515569]
[1748021419392,0.004,109640.0,109630.0,0.8515569]
[1748021419578,0.02224018,109640.0,109630.0,0.8515569]
[1748021420026,0.02936052,109640.0,109630.0,0.86067799]
[1748021420271,0.002,109640.0,109630.0,0.86167799]
[1748021420485,0.20975789,109650.0,109640.0,0.18241517]
[1748021420711,0.20975789,109650.0,109640.0,0.20065643]
[1748021420918,0.20975789,109650.0,109640.0,0.19153592]
[1748021421361,0.20975789,109650.0,109640.0,0.18241517]
[1748021421583,0.2006383,109650.0,109640.0,0.18241517]
[1748021422049,0.2006383,109650.0,109640.0,0.19153592]
[1748021422707,0.2006383,109650.0,109640.0,0.18241517]
[1748021422906,0.2006383,109650.0,109640.0,0.19153584]
[1748021423050,0.2006383,109650.0,109640.0,0.19153592]
[1748021423275,0.2016383,109650.0,109640.0,0.19153592]
[1748021423476,0.2016383,109650.0,109640.0,0.18241517]
[1748021424432,0.2261383,109650.0,109640.0,0.19153592]
[1748021425593,0.2261383,109650.0,109640.0,0.18241517]
[1748021425791,0.2261383,109650.0,109640.0,0.20065659]
[1748021425991,0.21701846,109650.0,109640.0,0.18241517]
[1748021426199,0.02736151,109640.0,109630.0,0.54067473]
[1748021426414,0.20065634,109640.0,109630.0,1.15495181]
[1748021426618,0.21763584,109640.0,109630.0,0.52243181]
[1748021426829,0.21763584,109640.0,109610.0,0.40977985]
[1748021426830,0.2006927,109620.0,109610.0,0.40977985]
[1748021427028,0.2255927,109620.0,109610.0,1.04229985]
[1748021427280,0.2245927,109620.0,109610.0,0.40977985]
[1748021427637,0.31313826,109620.0,109610.0,1.04229985]
[1748021427830,0.31313826,109620.0,109610.0,1.3716205]
[1748021427987,0.31313826,109620.0,109610.0,1.3756205]
[1748021428186,0.31313826,109620.0,109610.0,1.3786205]
[1748021428564,0.31313826,109620.0,109610.0,1.5610856]
[1748021428787,0.22588952,109630.0,109620.0,0.18244845]
[1748021428972,0.01824393,109620.0,109610.0,1.57933177]
[1748021429199,0.03648793,109620.0,109610.0,1.57933185]
[1748021429426,0.03648793,109620.0,109610.0,1.57933177]
[1748021429632,0.20981529,109620.0,109610.0,1.5580856]
[1748021430191,0.21477087,109620.0,109610.0,1.5580856]
[1748021430411,0.32049401,109620.0,109610.0,1.3756605]
[1748021431016,0.32049401,109620.0,109610.0,1.3786605]
[1748021431916,0.32049401,109620.0,109610.0,0.7461005]
[1748021432043,0.32049401,109620.0,109610.0,1.3786605]
[1748021432493,0.32049401,109620.0,109610.0,0.7461005]
[1748021432667,0.32049401,109620.0,109610.0,1.1053005]
[1748021432889,0.32049401,109620.0,109610.0,0.4061005]
[1748021433137,0.33503486,109620.0,109610.0,0.6794605]
[1748021433586,0.33503486,109620.0,109610.0,0.6764605]
[1748021433791,0.33503486,109620.0,109610.0,0.6724605]
[1748021433996,0.33503486,109620.0,109610.0,0.6734605]
[1748021434346,0.33603486,109620.0,109610.0,0.0064205]
[1748021434564,0.32149401,109620.0,109610.0,0.0064205]
[1748021434789,0.32149401,109620.0,109610.0,0.1888856]
[1748021435015,0.03748842,109620.0,109610.0,0.1888856]
[1748021435221,0.21081512,109620.0,109610.0,0.1878856]
[1748021435425,0.20169312,109620.0,109610.0,0.1878856]
[1748021435634,0.20369312,109620.0,109610.0,0.4612856]
[1748021436135,0.003,109620.0,109610.0,0.4612856]
[1748021436397,0.02124442,109620.0,109610.0,0.81953185]
[1748021436620,0.01212167,109620.0,109610.0,0.82865493]
[1748021436844,0.03036576,109620.0,109610.0,0.82865485]
[1748021437056,0.03036576,109620.0,109610.0,1.24058043]
[1748021437257,0.03948809,109620.0,109610.0,1.23087465]
[1748021437470,0.03036576,109620.0,109610.0,1.22175174]
[1748021437679,0.03948809,109620.0,109610.0,1.22175174]
[1748021437860,0.01212167,109620.0,109610.0,1.23999749]
[1748021438081,0.03948793,109620.0,109610.0,1.23087482]
[1748021438301,0.04861027,109620.0,109610.0,1.23087482]
[1748021438514,0.03036551,109620.0,109610.0,1.23999749]
[1748021438743,0.03948768,109620.0,109610.0,1.24912024]